bitfinex/quotes_BTCUSD_20250108
["timestamp","ask_amount","ask_price","bid_price","bid_amount"]
[1736355873829,0.0792,94611.0,94610.0,0.0005]
[1736355874230,0.083,94630.0,94610.0,0.1505]
[1736355874390,0.083,94630.0,94611.0,0.0010567]
[1736355874587,0.0522,94629.0,94611.0,0.0010567]
[1736355874785,0.0522,94629.0,94610.0,0.1505]
[1736355874993,0.0522,94629.0,94610.0,0.15155674]
[1736355875239,0.0522,94622.0,94610.0,0.0005]
[1736355875877,0.0522,94616.0,94610.0,0.0005]
[1736355876273,0.1,94618.0,94610.0,0.0005]
[1736355876274,0.0522,94611.0,94610.0,0.0005]
[1736355876491,0.1522,94611.0,94610.0,0.0005]
[1736355876693,0.1,94614.0,94610.0,0.0005]
[1736355876898,0.1,94611.0,94610.0,0.0005]
[1736355877098,0.0522,94611.0,94610.0,0.0005]
[1736355877444,0.02598657,94613.0,94587.0,0.21250193]
[1736355877557,0.02598657,94609.0,94587.0,0.211445]
[1736355877761,0.00015161,94611.0,94589.0,0.211441]
[1736355877965,0.00015161,94611.0,94590.0,0.0010569]
[1736355878171,0.00015161,94611.0,94592.0,0.211434]
[1736355878366,0.00015161,94611.0,94610.0,0.10429976]
[1736355879289,0.00115161,94611.0,94610.0,0.25429976]
[1736355879670,0.211318,94645.0,94610.0,0.25429976]
[1736355879671,0.1,94687.0,94611.0,0.15]
[1736355879874,0.0822,94647.0,94629.0,0.05922618]
[1736355880077,0.0822,94647.0,94640.0,0.10429976]
[1736355880078,0.00032368,94646.0,94640.0,0.10429976]
[1736355880695,0.00032368,94646.0,94641.0,0.15]
[1736355880897,0.00032368,94646.0,94643.0,0.15]
[1736355881094,0.00032368,94646.0,94645.0,0.25429976]
[1736355881543,0.0768,94664.0,94646.0,0.15]
[1736355881766,0.0768,94664.0,94661.0,0.10429976]
[1736355881910,0.0768,94664.0,94662.0,0.15]
[1736355882104,0.0768,94664.0,94663.0,0.25429976]
[1736355882608,1e-08,94664.0,94663.0,0.25429976]
[1736355882836,1e-08,94664.0,94663.0,0.10429976]
[1736355883033,1e-08,94664.0,94663.0,0.25535595]
[1736355883232,1e-08,94664.0,94663.0,0.25429976]
[1736355883640,0.00782036,94664.0,94663.0,0.11118681]
[1736355883840,0.13380693,94664.0,94663.0,0.10429976]
[1736355884051,0.03380693,94664.0,94663.0,0.10429976]
[1736355884257,0.13380693,94664.0,94663.0,0.10429976]
[1736355884458,0.13480693,94664.0,94663.0,0.10429976]
[1736355884887,0.13380693,94664.0,94663.0,0.10429976]
[1736355885086,0.13680693,94664.0,94663.0,0.10429976]
[1736355885360,0.03380693,94664.0,94663.0,0.10429976]
[1736355885907,0.03380693,94664.0,94663.0,0.10629976]
[1736355886253,0.13380693,94664.0,94663.0,0.10429976]
[1736355886453,0.1,94651.0,94634.0,0.02128258]
[1736355886679,0.02598657,94644.0,94643.0,0.10429976]
[1736355887298,0.12598657,94644.0,94643.0,0.10429976]
[1736355887512,0.12598657,94644.0,94634.0,0.00015248]
[1736355887513,0.36032457,94635.0,94634.0,0.00015248]
[1736355888693,0.33735557,94621.0,94620.0,4e-05]
[1736355888902,0.02598657,94601.0,94600.0,4e-05]
[1736355889087,0.36040057,94601.0,94600.0,4e-05]
[1736355889336,0.36040057,94601.0,94600.0,0.00054575]
[1736355889544,0.2488,94601.0,94600.0,0.00054575]
[1736355889756,0.0276037,94601.0,94600.0,0.00054575]
[1736355889955,0.0276037,94601.0,94600.0,0.10484551]
[1736355890334,0.0276037,94601.0,94600.0,0.11113822]
[1736355890546,0.03542405,94601.0,94600.0,0.11113822]
[1736355890945,0.03542405,94601.0,94600.0,0.10484551]
[1736355891366,0.04242405,94601.0,94600.0,0.00683846]
[1736355891577,0.05948104,94601.0,94600.0,0.00054575]
[1736355892006,0.05892085,94601.0,94600.0,0.00054575]
[1736355892635,0.10432085,94601.0,94600.0,0.00054575]
[1736355893044,0.10432085,94601.0,94561.0,8.55e-05]
[1736355893045,0.023,94598.0,94561.0,8.55e-05]
[1736355893246,0.00105699,94597.0,94562.0,0.10429976]
[1736355893459,0.211465,94578.0,94562.0,0.10438516]
[1736355893837,0.211467,94577.0,94563.0,0.00646439]
[1736355894070,0.211467,94577.0,94564.0,0.10429976]
[1736355894262,0.211467,94577.0,94564.0,0.11075951]
[1736355894463,0.00050794,94598.0,94564.0,0.11075951]
[1736355894464,0.023,94584.0,94564.0,0.11075951]
[1736355894668,0.00105699,94583.0,94564.0,0.11075951]
[1736355894840,0.21149,94568.0,94564.0,0.11075951]
[1736355895041,0.211492,94566.0,94564.0,0.00645975]
[1736355895217,0.211492,94566.0,94562.0,8.54e-05]
[1736355895218,0.422986,94566.0,94562.0,8.54e-05]
[1736355895430,0.211496,94564.0,94562.0,8.54e-05]
[1736355895830,0.0777,94567.0,94563.0,0.10429976]
[1736355896115,0.1,94590.0,94564.0,0.001]
[1736355896394,0.211474,94575.0,94565.0,0.10429976]
[1736355896601,0.211464,94579.0,94565.0,0.11075487]
[1736355896979,0.0759,94592.0,94565.0,0.11075487]
[1736355897186,0.21147,94576.0,94565.0,0.11075487]
[1736355897390,0.422973,94569.0,94565.0,0.11075487]
[1736355897791,0.01938727,94568.0,94565.0,0.11075487]
[1736355898579,0.01938727,94568.0,94566.0,0.01110774]
[1736355898782,0.23087527,94568.0,94567.0,0.11074559]
[1736355899263,0.23087527,94568.0,94567.0,0.00644583]
[1736355899448,0.28037527,94568.0,94567.0,0.00644583]
[1736355899636,0.234492,94567.0,94563.0,0.00015161]
[1736355899875,0.211494,94565.0,94563.0,0.00015161]
[1736355900305,0.07663175,94568.0,94563.0,0.00015161]
[1736355900306,0.07663175,94568.0,94564.0,0.10429976]
[1736355900520,0.08163175,94568.0,94564.0,0.10429976]
[1736355900720,0.21149,94567.0,94565.0,0.00645511]
[1736355901122,0.211494,94565.0,94563.0,0.00015161]
[1736355901656,0.05724448,94568.0,94564.0,0.10429976]
[1736355901657,0.01274448,94568.0,94564.0,0.10429976]
[1736355901857,0.00774448,94566.0,94564.0,0.10429976]
[1736355902060,0.21923648,94566.0,94565.0,0.11075487]
[1736355902263,0.21923648,94566.0,94565.0,0.00645511]
[1736355902264,0.00774448,94566.0,94565.0,0.00645511]
[1736355902671,0.00774448,94566.0,94563.0,0.00015161]
[1736355902672,0.211494,94565.0,94563.0,0.00015161]
[1736355902875,0.15105699,94564.0,94563.0,0.00015161]
[1736355903087,0.2518,94564.0,94563.0,0.00015161]
[1736355904457,0.2518,94564.0,94520.0,8.55e-05]
[1736355904458,0.234526,94551.0,94520.0,8.55e-05]
[1736355904628,0.7053879,94551.0,94550.0,1e-08]
[1736355904844,0.8553879,94551.0,94550.0,1e-08]
[1736355905257,0.211593,94521.0,94520.0,8.55e-05]
[1736355905819,0.30679866,94521.0,94520.0,8.55e-05]
[1736355906007,0.65679866,94521.0,94520.0,8.55e-05]
[1736355906243,0.461626,94506.0,94500.0,0.0011]
[1736355906519,0.1,94487.0,94450.0,4e-05]
[1736355906789,0.15,94460.0,94450.0,4e-05]
[1736355907003,0.15,94460.0,94449.0,1.49645422]
[1736355907004,0.1,94450.0,94449.0,0.43993947]
[1736355907211,0.00105699,94450.0,94449.0,0.43993947]
[1736355907415,1.01730875,94450.0,94449.0,0.36183947]
[1736355907625,1.01730875,94450.0,94429.0,0.09749179]
[1736355907626,0.1,94446.0,94429.0,0.09749179]
[1736355907831,0.1,94446.0,94429.0,0.00501502]
[1736355907832,0.4272,94444.0,94429.0,0.00501502]
[1736355908066,0.3272,94444.0,94429.0,0.00501502]
[1736355908284,0.3272,94444.0,94443.0,0.45143666]
[1736355908688,0.3272,94444.0,94429.0,0.00501502]
[1736355908689,0.25,94443.0,94429.0,0.00501502]
[1736355908902,0.211797,94430.0,94429.0,0.00501502]
[1736355909324,0.70486652,94430.0,94429.0,0.00501502]
[1736355909527,0.5831428,94430.0,94429.0,0.00501502]
[1736355909728,0.7331428,94430.0,94429.0,0.00501502]
[1736355910382,0.60244846,94430.0,94429.0,0.00501502]
[1736355911032,0.61144846,94430.0,94429.0,0.00501502]
[1736355911446,0.02830566,94430.0,94429.0,0.00501502]
[1736355911657,0.02830566,94430.0,94429.0,0.10931478]
[1736355911956,0.02830566,94430.0,94429.0,0.12024626]
[1736355912158,0.009,94430.0,94429.0,0.12024626]
[1736355912361,0.00015201,94446.0,94429.0,0.12024626]
[1736355912362,0.00015201,94446.0,94430.0,0.125]
[1736355912568,0.00015201,94446.0,94445.0,0.25429976]
[1736355913228,0.00105699,94483.0,94447.0,0.1]
[1736355913430,0.211659,94492.0,94465.0,0.15]
[1736355913431,0.423335,94488.0,94465.0,0.15]
[1736355913639,0.00105699,94487.0,94466.0,0.10429976]
[1736355913845,0.0001526,94492.0,94478.0,0.10429976]
[1736355914048,0.0001526,94492.0,94473.0,0.1268]
[1736355914049,0.0001526,94492.0,94481.0,0.10429976]
[1736355914266,0.0001526,94492.0,94482.0,0.01042998]
[1736355914505,0.211663,94490.0,94483.0,0.10429976]
[1736355914736,0.220667,94488.0,94483.0,0.10429976]
[1736355914949,0.220667,94488.0,94434.0,0.0785]
[1736355914950,0.211734,94459.0,94434.0,0.0785]
[1736355915157,0.00105699,94458.0,94435.0,0.10429976]
[1736355915588,0.211715,94467.0,94441.0,0.10429976]
[1736355915838,0.211715,94467.0,94434.0,0.0916815]
[1736355915839,0.211689,94479.0,94453.0,0.25429976]
[1736355916041,0.211706,94471.0,94453.0,0.10429976]
[1736355916242,0.211671,94487.0,94464.0,0.10429976]
[1736355916450,0.00015257,94479.0,94464.0,0.10429976]
[1736355916661,0.00015257,94479.0,94434.0,0.0916815]
[1736355916662,0.211739,94456.0,94434.0,0.0916815]
[1736355916864,0.211727,94461.0,94436.0,0.10429976]
[1736355917087,0.211727,94461.0,94435.0,0.01449965]
[1736355917088,0.21171,94469.0,94453.0,0.001]
[1736355917305,0.00105699,94468.0,94454.0,0.10429976]
[1736355917714,0.211718,94465.0,94464.0,0.001]
[1736355917924,0.211736,94458.0,94454.0,0.10429976]
[1736355918102,0.211712,94468.0,94454.0,0.10429976]
[1736355918309,0.00105699,94467.0,94454.0,0.10429976]
[1736355918513,0.00105699,94467.0,94453.0,0.001]
[1736355918514,0.211735,94458.0,94453.0,0.001]
[1736355918728,0.211738,94456.0,94453.0,0.001]
[1736355918933,0.461743,94454.0,94453.0,0.001]
[1736355919144,0.211743,94454.0,94453.0,0.001]
[1736355919524,0.211738,94456.0,94453.0,0.10529976]
[1736355919699,0.211738,94456.0,94454.0,0.10429976]
[1736355920457,0.01913898,94455.0,94454.0,0.10314772]
[1736355920603,0.01913898,94455.0,94454.0,0.11346249]
[1736355920806,0.01913898,94455.0,94454.0,0.16126249]
[1736355921007,0.01913898,94455.0,94454.0,0.22698772]
[1736355921821,0.004,94456.0,94454.0,0.22698772]
[1736355922045,0.211709,94469.0,94454.0,0.22698772]
[1736355922248,0.00105699,94468.0,94454.0,0.22698772]
[1736355922469,0.042404,94470.0,94454.0,0.10318772]
[1736355922470,0.21173,94460.0,94454.0,0.10318772]
[1736355923032,0.211734,94458.0,94454.0,4e-05]
[1736355923234,0.211734,94458.0,94455.0,0.10429976]
[1736355923436,0.211734,94458.0,94454.0,4e-05]
[1736355923651,0.211738,94456.0,94454.0,4e-05]
[1736355923777,0.00105699,94455.0,94454.0,4e-05]
[1736355924400,0.211738,94456.0,94454.0,4e-05]
[1736355924929,0.8026606,94458.0,94455.0,0.10429976]
[1736355924930,0.008,94458.0,94455.0,0.10429976]
[1736355925169,0.211703,94472.0,94455.0,0.10429976]
[1736355925170,0.211709,94469.0,94455.0,0.10429976]
[1736355925416,0.1,94495.0,94455.0,0.10429976]
[1736355925662,0.00105699,94468.0,94455.0,0.10425378]
[1736355925982,0.211692,94477.0,94455.0,0.10425378]
[1736355926080,0.211732,94459.0,94455.0,0.10309453]
[1736355926336,0.211711,94469.0,94455.0,0.10309453]
[1736355926584,0.1,94496.0,94456.0,0.1277]
[1736355926788,0.1,94492.0,94457.0,0.10429976]
[1736355926997,0.0165746,94474.0,94457.0,0.10429976]
[1736355927244,0.008,94458.0,94457.0,0.10429976]
[1736355927453,0.0165746,94474.0,94457.0,0.10429976]
[1736355927653,0.211722,94464.0,94457.0,0.10429976]
[1736355927861,0.006,94469.0,94457.0,0.10429976]
[1736355927862,0.006,94469.0,94457.0,0.12594711]
[1736355928068,0.01922244,94473.0,94458.0,0.10429976]
[1736355928270,0.211707,94470.0,94458.0,0.10429976]
[1736355928477,0.211723,94463.0,94458.0,0.10429976]
[1736355928902,0.042408,94466.0,94458.0,0.10429976]
[1736355929117,0.042408,94466.0,94456.0,0.11213371]
[1736355929118,0.042408,94466.0,94461.0,0.10429976]
[1736355929329,0.01922244,94462.0,94461.0,0.12605297]
[1736355929538,0.01922244,94462.0,94461.0,0.10429976]
[1736355930420,0.00015257,94479.0,94461.0,0.10429976]
[1736355930632,0.005,94466.0,94461.0,0.10429976]
[1736355930842,0.211718,94465.0,94461.0,0.10429976]
[1736355931070,0.211703,94472.0,94461.0,0.10429976]
[1736355931281,0.001,94462.0,94461.0,0.10629976]
[1736355931482,0.00015257,94479.0,94461.0,0.10429976]
[1736355931686,0.01926744,94465.0,94461.0,0.10429976]
[1736355931890,0.01926744,94465.0,94462.0,0.00105855]
[1736355932094,0.01926744,94465.0,94463.0,0.10429976]
[1736355932303,0.01926744,94465.0,94464.0,0.10429976]
[1736355932716,0.00015257,94479.0,94464.0,0.10429976]
[1736355932921,0.211689,94478.0,94464.0,0.10429976]
[1736355933331,0.211705,94471.0,94464.0,0.10429976]
[1736355933534,0.211693,94476.0,94464.0,0.10429976]
[1736355933745,0.211689,94478.0,94464.0,0.10429976]
[1736355933746,0.01932369,94478.0,94464.0,0.10429976]
[1736355933952,0.01932369,94478.0,94474.0,0.10429976]
[1736355934854,0.00772847,94477.0,94474.0,0.10429976]
[1736355935256,0.23874416,94477.0,94474.0,0.10429976]
[1736355935478,0.211725,94462.0,94461.0,4e-05]
[1736355935691,0.21172,94465.0,94461.0,0.10433976]
[1736355935901,0.02705216,94477.0,94462.0,0.10429976]
[1736355936117,0.211708,94470.0,94462.0,0.10429976]
[1736355936334,0.211718,94466.0,94462.0,0.10429976]
[1736355936554,0.00772847,94476.0,94461.0,4e-05]
[1736355936555,0.211696,94475.0,94461.0,4e-05]
[1736355936784,0.21172,94465.0,94461.0,4e-05]
[1736355936990,0.42344,94465.0,94461.0,4e-05]
[1736355937876,0.211723,94463.0,94461.0,4e-05]
[1736355938081,0.00105699,94462.0,94461.0,4e-05]
[1736355938774,0.00105699,94462.0,94424.0,0.02072601]
[1736355938775,0.211797,94430.0,94421.0,4.261e-05]
[1736355938981,0.5831021,94430.0,94421.0,4.261e-05]
[1736355939650,0.60242579,94430.0,94421.0,4.261e-05]
[1736355939879,0.23112069,94430.0,94421.0,4.261e-05]
[1736355940101,0.23112069,94430.0,94429.0,0.00552006]
[1736355940308,0.02705216,94430.0,94429.0,0.00552006]
[1736355940746,0.02705216,94430.0,94429.0,0.10981982]
[1736355940951,0.02705216,94430.0,94429.0,0.19041982]
[1736355941687,0.02705216,94430.0,94429.0,0.38541982]
[1736355941937,0.09197051,94478.0,94429.0,0.38541982]
[1736355941938,0.005,94465.0,94437.0,0.15]
[1736355942189,0.09197051,94478.0,94448.0,0.10429976]
[1736355942190,0.423402,94473.0,94448.0,0.10429976]
[1736355942498,0.09197051,94456.0,94449.0,0.01042998]
[1736355942698,0.09197051,94456.0,94450.0,0.10429976]
[1736355943516,0.09197051,94456.0,94429.0,0.13112006]
[1736355943517,0.09329381,94456.0,94429.0,0.13112006]
[1736355944032,0.211739,94456.0,94430.0,0.10483097]
[1736355944033,0.211716,94467.0,94442.0,0.10429976]
[1736355944256,0.211702,94472.0,94449.0,0.10429976]
[1736355944468,0.00132329,94471.0,94449.0,0.10429976]
[1736355944671,0.211729,94461.0,94449.0,0.10429976]
[1736355944879,0.211739,94456.0,94449.0,0.10429976]
[1736355945117,0.211741,94455.0,94449.0,0.10429976]
[1736355945321,0.211772,94441.0,94429.0,0.13112006]
[1736355945526,0.211772,94441.0,94430.0,0.10429976]
[1736355945731,0.211705,94471.0,94430.0,0.10429976]
[1736355945943,0.1,94462.0,94430.0,0.10429976]
[1736355946142,0.211739,94456.0,94429.0,0.00552006]
[1736355946376,0.00132376,94455.0,94430.0,0.10429976]
[1736355946588,0.211784,94436.0,94430.0,0.10429976]
[1736355946794,0.423528,94436.0,94430.0,0.10429976]
[1736355947615,0.211744,94436.0,94430.0,0.10429976]
[1736355947821,0.211771,94442.0,94431.0,0.01098198]
[1736355948023,0.211762,94446.0,94432.0,0.10429976]
[1736355948229,0.211736,94457.0,94432.0,0.10429976]
[1736355948436,0.00132357,94456.0,94432.0,0.10429976]
[1736355948656,0.21178,94438.0,94432.0,0.10429976]
[1736355948873,0.00132357,94456.0,94429.0,0.00552006]
[1736355948874,0.211785,94435.0,94429.0,0.00552006]
[1736355949073,0.211792,94432.0,94429.0,0.00552006]
[1736355949507,0.211792,94432.0,94430.0,0.10429976]
[1736355949659,0.211792,94432.0,94429.0,0.00552006]
[1736355949870,0.211785,94435.0,94429.0,0.00552006]
[1736355950240,0.002,94435.0,94430.0,0.10429976]
[1736355950653,0.002,94435.0,94430.0,0.0981525]
[1736355951553,0.09197051,94450.0,94432.0,4e-05]
[1736355951759,0.21179,94434.0,94432.0,4e-05]
[1736355952164,0.09197051,94450.0,94433.0,0.10429976]
[1736355952371,0.001,94435.0,94434.0,0.10429976]
[1736355952578,0.09197051,94450.0,94434.0,0.11581725]
[1736355952780,0.48078377,94478.0,94434.0,0.11581725]
[1736355952781,0.09197051,94442.0,94434.0,0.11528574]
[1736355952999,0.09197051,94442.0,94434.0,0.10429976]
[1736355953411,0.0919285,94442.0,94434.0,0.10429976]
[1736355953823,0.0919285,94442.0,94435.0,0.15]
[1736355954040,0.0919285,94442.0,94436.0,0.10429976]
[1736355954256,0.21179,94433.0,94432.0,4e-05]
[1736355955678,0.13795576,94440.0,94432.0,0.10433976]
[1736355955914,0.13795576,94440.0,94433.0,0.10429976]
[1736355956498,0.13795576,94440.0,94437.0,0.10429976]
[1736355956783,0.08139631,94481.0,94441.0,0.211772]
[1736355956784,0.00985576,94449.0,94441.0,0.211772]
[1736355957033,0.17550715,94452.0,94449.0,0.287354]
[1736355957329,0.09740715,94452.0,94451.0,0.37729976]
[1736355957585,0.09740715,94452.0,94451.0,0.51001683]
[1736355957871,0.27591153,94463.0,94451.0,0.51001683]
[1736355957872,0.27591153,94463.0,94460.0,0.1]
[1736355958065,0.18507742,94471.0,94470.0,0.484707]
[1736355958269,0.48078377,94516.0,94502.0,0.15]
[1736355958518,0.48078377,94516.0,94509.0,0.10429976]
[1736355959053,0.48078377,94516.0,94509.0,0.12729976]
[1736355959267,0.48078377,94516.0,94509.0,0.19521447]
[1736355959268,0.00032346,94510.0,94509.0,0.19521447]
[1736355959491,0.00132346,94510.0,94509.0,0.13800586]
[1736355959692,0.00032346,94510.0,94509.0,0.28853496]
[1736355959897,0.00032346,94510.0,94509.0,0.28800586]
[1736355960118,0.00132346,94510.0,94509.0,0.14100586]
[1736355960341,0.00032346,94510.0,94509.0,0.11500586]
[1736355960556,0.00032346,94510.0,94486.0,0.01041394]
[1736355960768,0.21162,94509.0,94487.0,0.10317976]
[1736355960979,0.00032346,94510.0,94488.0,0.09363051]
[1736355960980,0.1,94505.0,94488.0,0.09363051]
[1736355961186,0.211664,94489.0,94488.0,0.09363051]
[1736355961837,0.211664,94489.0,94488.0,0.09251051]
[1736355962265,0.1,94494.0,94468.0,0.01068599]
[1736355962481,0.211697,94475.0,94469.0,0.10429976]
[1736355962692,0.211697,94475.0,94470.0,0.01149858]
[1736355962899,0.211697,94475.0,94471.0,0.10429976]
[1736355963119,0.211678,94484.0,94471.0,0.10429976]
[1736355963330,0.211689,94479.0,94471.0,0.10371026]
[1736355963535,0.423396,94474.0,94471.0,0.10371026]
[1736355963954,0.423396,94474.0,94471.0,0.10259026]
[1736355964394,0.423396,94474.0,94471.0,0.10147026]
[1736355964595,0.002,94475.0,94435.0,0.0827]
[1736355964797,0.02332411,94474.0,94446.0,0.10429976]
[1736355965009,0.211746,94453.0,94446.0,0.10317976]
[1736355965213,0.211756,94448.0,94447.0,0.00746018]
[1736355965430,0.211756,94448.0,94447.0,0.11175994]
[1736355965635,0.211756,94448.0,94447.0,0.10429976]
[1736355965838,0.22232229,94488.0,94447.0,0.10429976]
[1736355965839,0.005,94484.0,94447.0,0.10317976]
[1736355966041,0.211724,94463.0,94449.0,0.10429976]
[1736355966248,0.00132315,94481.0,94449.0,0.10429976]
[1736355966249,0.211743,94454.0,94449.0,0.10429976]
[1736355966456,0.423486,94454.0,94449.0,0.10429976]
[1736355966664,0.211743,94454.0,94449.0,0.10429976]
[1736355966915,0.211748,94452.0,94449.0,0.10317976]
[1736355967130,0.1,94478.0,94449.0,0.10317976]
[1736355967338,0.211739,94456.0,94450.0,0.01137828]
[1736355967543,0.211725,94463.0,94451.0,0.10429976]
[1736355967752,0.21169,94478.0,94451.0,0.10429976]
[1736355967969,0.0768,94482.0,94453.0,0.10429976]
[1736355968176,0.211685,94480.0,94453.0,0.10429976]
[1736355968379,0.07695257,94482.0,94453.0,0.10429976]
[1736355968380,0.07695257,94482.0,94454.0,0.01899541]
[1736355968527,0.00132316,94481.0,94455.0,0.10429976]
[1736355968731,0.211735,94458.0,94455.0,0.11172272]
[1736355969318,0.211706,94471.0,94455.0,0.11172272]
[1736355969492,0.211726,94462.0,94455.0,0.12397656]
[1736355969875,0.211726,94462.0,94455.0,0.10429976]
[1736355970097,0.423452,94462.0,94456.0,0.00741831]
[1736355970307,0.211735,94458.0,94457.0,0.10429976]
[1736355970533,0.211735,94458.0,94457.0,0.00617727]
[1736355970534,0.004,94458.0,94457.0,0.00617727]
[1736355970933,0.004,94458.0,94432.0,0.01041234]
[1736355971169,0.0255722,94458.0,94433.0,0.10429976]
[1736355971380,0.211786,94435.0,94433.0,0.10429976]
[1736355971600,0.423572,94435.0,94432.0,4e-05]
[1736355972247,0.42301092,94435.0,94432.0,4e-05]
[1736355972778,0.42301092,94435.0,94432.0,0.00054504]
[1736355972779,0.21179,94433.0,94432.0,0.00054504]
[1736355974820,0.1,94430.0,94429.0,6e-08]
[1736355975024,0.3726902,94430.0,94429.0,6e-08]
[1736355975230,0.3713661,94430.0,94429.0,6e-08]
[1736355975438,0.47566586,94430.0,94429.0,6e-08]
[1736355976039,0.3713661,94430.0,94429.0,6e-08]
[1736355976566,0.3803661,94430.0,94429.0,6e-08]
[1736355976810,0.3713661,94430.0,94429.0,6e-08]
[1736355977052,0.3803661,94430.0,94429.0,6e-08]
[1736355977462,0.211817,94421.0,94420.0,6e-08]
[1736355977652,0.1,94419.0,94416.0,9.4e-07]
[1736355977859,0.0759,94410.0,94408.0,0.00156174]
[1736355978062,0.0759,94410.0,94408.0,7.4e-07]
[1736355978063,0.31316825,94409.0,94408.0,7.4e-07]
[1736355978338,0.1,94402.0,94400.0,0.01076874]
[1736355978542,0.211857,94403.0,94400.0,0.01076874]
[1736355978543,0.21318646,94401.0,94400.0,0.01076874]
[1736355978752,0.211862,94401.0,94400.0,0.01076874]
[1736355978894,0.3004187,94401.0,94400.0,0.01076874]
[1736355979093,0.211862,94401.0,94400.0,0.01076874]
[1736355979300,0.33551885,94401.0,94400.0,7.4e-07]
[1736355979621,0.3360271,94401.0,94400.0,7.4e-07]
[1736355979828,0.3450271,94401.0,94400.0,7.4e-07]
[1736355980025,0.44032686,94401.0,94400.0,7.4e-07]
[1736355980809,0.23172734,94401.0,94400.0,7.4e-07]
[1736355981009,0.23172734,94401.0,94318.0,0.1115]
[1736355981010,0.21725626,94401.0,94318.0,0.1115]
[1736355981213,0.21725626,94401.0,94278.0,0.0567053]
[1736355981214,0.1,94381.0,94362.0,0.10429976]
[1736355981414,0.00132424,94400.0,94371.0,0.10429976]
[1736355981613,0.00132424,94400.0,94360.0,0.28278446]
[1736355981614,0.01986534,94401.0,94382.0,0.10429976]
[1736355981836,0.01986534,94401.0,94383.0,0.11472974]
[1736355981837,0.1,94398.0,94383.0,0.11472974]
[1736355982036,0.1,94395.0,94383.0,0.11472974]
[1736355982236,0.1,94390.0,94362.0,0.01061463]
[1736355982555,0.07382694,94385.0,94369.0,0.10429976]
[1736355982753,0.1,94378.0,94369.0,0.10429976]
[1736355983191,0.1,94383.0,94371.0,0.10429976]
[1736355983393,0.1,94383.0,94372.0,0.01042998]
[1736355983599,0.211904,94382.0,94373.0,0.10429976]
[1736355983802,0.00050825,94401.0,94376.0,0.15]
[1736355984004,0.00050825,94401.0,94382.0,0.10429976]
[1736355984211,0.1,94398.0,94382.0,0.10429976]
[1736355984431,0.00050825,94401.0,94387.0,0.10429976]
[1736355984638,0.00050825,94401.0,94391.0,0.10429976]
[1736355984843,0.00050825,94401.0,94395.0,0.10429976]
[1736355985048,0.00050825,94401.0,94400.0,0.48916376]
[1736355985674,0.00050825,94401.0,94400.0,0.51022755]
[1736355985880,0.00050825,94401.0,94400.0,0.61932138]
[1736355986094,0.1,94453.0,94402.0,0.02617306]
[1736355986305,0.311774,94441.0,94423.0,0.10429976]
[1736355986518,0.21181,94424.0,94423.0,0.10429976]
[1736355986730,0.211821,94420.0,94401.0,0.15]
[1736355986952,0.07382694,94429.0,94408.0,0.15]
[1736355987158,0.211801,94428.0,94409.0,0.10429976]
[1736355987374,0.1,94431.0,94409.0,0.10429976]
[1736355987577,0.211797,94430.0,94409.0,0.10429976]
[1736355987783,0.1,94442.0,94414.0,0.10429976]
[1736355988029,0.1,94438.0,94421.0,0.10429976]
[1736355988342,0.17382694,94438.0,94421.0,0.10429976]
[1736355988558,0.311804,94427.0,94421.0,0.10429976]
[1736355988804,0.211828,94416.0,94400.0,0.00015201]
[1736355989052,0.1,94417.0,94401.0,0.10429976]
[1736355989324,0.211828,94416.0,94402.0,0.01252159]
[1736355989596,0.211828,94416.0,94403.0,0.10429976]
[1736355990180,0.258997,94430.0,94403.0,0.10429976]
[1736355990384,0.1,94419.0,94405.0,0.10429976]
[1736355990590,0.1,94426.0,94405.0,0.10429976]
[1736355990765,0.1,94419.0,94405.0,0.10429976]
[1736355991199,0.211826,94417.0,94405.0,0.10429976]
[1736355991428,0.07382694,94422.0,94405.0,0.10429976]
[1736355991429,0.1,94418.0,94405.0,0.10429976]
[1736355991633,0.211826,94417.0,94405.0,0.10429976]
[1736355991844,0.1,94418.0,94405.0,0.10429976]
[1736355992096,0.1,94418.0,94406.0,0.01537502]
[1736355992303,0.1,94418.0,94400.0,0.27237196]
[1736355992304,0.1,94418.0,94407.0,0.10429976]
[1736355992513,0.211826,94417.0,94407.0,0.10429976]
[1736355993153,0.423652,94417.0,94407.0,0.10429976]
[1736355993580,0.0472,94430.0,94400.0,0.01092085]
[1736355993581,0.0472,94430.0,94409.0,0.10429976]
[1736355993788,0.1,94426.0,94409.0,0.10429976]
[1736355993997,0.211808,94425.0,94409.0,0.10429976]
[1736355994206,0.211837,94412.0,94409.0,0.10429976]
[1736355994637,0.1,94418.0,94409.0,0.10429976]
[1736355994849,0.211794,94431.0,94411.0,0.10429976]
[1736355995060,0.211794,94431.0,94401.0,0.173]
[1736355995061,0.311786,94435.0,94413.0,0.10429976]
[1736355995271,0.311786,94435.0,94414.0,0.10429976]
[1736355995272,0.001,94425.0,94414.0,0.10429976]
[1736355995482,0.17382694,94434.0,94414.0,0.10429976]
[1736355995688,0.07382694,94422.0,94414.0,0.10429976]
[1736355995981,0.001,94418.0,94414.0,0.10429976]
[1736355996237,0.07382694,94443.0,94417.0,0.31612576]
[1736355996478,0.211767,94444.0,94417.0,0.31612576]
[1736355996479,0.1,94438.0,94422.0,0.10429976]
[1736355996676,0.001,94425.0,94422.0,0.10429976]
[1736355996884,0.21181,94424.0,94422.0,0.10429976]
[1736355997102,0.001,94425.0,94422.0,0.10429976]
[1736355997608,0.212808,94425.0,94422.0,0.10429976]
[1736355998096,0.423616,94425.0,94422.0,0.10429976]
[1736355998574,0.1,94432.0,94422.0,0.10429976]
[1736355998771,0.211812,94423.0,94417.0,4e-05]
[1736355998979,0.21181,94424.0,94422.0,0.002]
[1736355999135,0.21168251,94424.0,94423.0,0.10429976]
[1736355999322,0.07382694,94423.0,94422.0,0.00204]
[1736355999526,0.17382694,94423.0,94422.0,0.00204]
[1736355999746,0.24284234,94423.0,94422.0,4e-05]
[1736355999960,0.29061849,94423.0,94422.0,4e-05]
[1736356000166,0.0491,94423.0,94422.0,4e-05]
[1736356000345,0.211797,94430.0,94422.0,0.10433976]
[1736356000540,0.1,94432.0,94423.0,0.10429976]
[1736356000836,0.0826,94442.0,94424.0,0.10429976]
[1736356000837,0.1,94442.0,94424.0,0.10429976]
[1736356001242,0.07382694,94438.0,94425.0,0.10429976]
[1736356001642,0.211784,94436.0,94425.0,0.10429976]